fUSD/lending_fUSD_20251215
["ID","MTS","AMOUNT","RATE_DAILY","PERIOD"]
[398504977,1765762242881,-1800.0,0.0001634,2]
[398504978,1765762242891,-299.9620005,0.00016342,2]
[398504979,1765762242900,-1279.0,0.00016344,2]
[398504980,1765762242909,-1014.12,0.00016348,2]
[398504981,1765762242918,-287.44,0.00016366,2]
[398504983,1765762242928,-1806.20817495,0.00016366,2]
[398504984,1765762242936,-189.59,0.00016367,2]
[398504985,1765762242946,-179.84,0.00016367,2]
[398504986,1765762242955,-1331.0,0.00016376,2]
[398504987,1765762242963,-19292.52667859,0.00016391,2]
[398504988,1765762242973,-435.19504023,0.00016395,2]
[398504989,1765762242981,-500.0,0.00016396,2]
[398504990,1765762242990,-500.0,0.00016396,2]
[398504991,1765762242999,-506.09206684,0.00016396,2]
[398504992,1765762243008,-79999.99999905,0.000164,2]
[398504993,1765762243018,-1138.0,0.00016408,2]
[398504994,1765762243027,-253.08611168,0.00016433,2]
[398504995,1765762243036,-728.58,0.00016438,2]
[398504996,1765762243045,-728.58,0.00016438,2]
[398504997,1765762243055,-728.58,0.00016438,2]
[398504998,1765762243064,-728.58,0.00016438,2]
[398504999,1765762243074,-500.0,0.00016438,2]
[398505000,1765762243083,-500.0,0.00016438,2]
[398505001,1765762243092,-500.0,0.00016438,2]
[398505002,1765762243102,-500.0,0.00016438,2]
[398505003,1765762243111,-457.83652928,0.00016438,2]
[398505004,1765762243120,-500.0,0.00016438,2]
[398505005,1765762243130,-500.0,0.00016438,2]
[398505006,1765762243139,-500.0,0.00016438,2]
[398505007,1765762243149,-500.0,0.00016438,2]
[398505008,1765762243158,-500.0,0.00016438,2]
[398505009,1765762243167,-500.0,0.00016438,2]
[398505010,1765762243176,-500.0,0.00016438,2]
[398505011,1765762243186,-500.0,0.00016438,2]
[398505012,1765762243196,-500.0,0.00016438,2]
[398505013,1765762243207,-600.0,0.00016438,2]
[398505014,1765762243217,-9517.09,0.00016438,2]
[398505015,1765762243225,-1800.0,0.00016481,2]
[398505016,1765762243234,-19292.52667859,0.00016493,2]
[398505017,1765762243244,-1806.20817495,0.000165,2]
[398505018,1765762243254,-1936.0,0.00016577,2]
[398505019,1765762243263,-728.58,0.00016594,2]
[398505020,1765762243274,-19292.52667859,0.00016595,2]
[398505021,1765762243282,-200.0,0.00016616,2]
[398505022,1765762243291,-200.0,0.00016616,2]
[398505023,1765762243300,-500.0,0.00016616,2]
[398505024,1765762243314,-1014.12,0.00016622,2]
[398505025,1765762243323,-166.67,0.00016627,2]
[398505026,1765762243333,-1806.20817495,0.00016633,2]
[398505027,1765762243344,-4996.27414488,0.0001666,2]
[398505028,1765762243353,-1800.0,0.00016672,2]
[398505029,1765762243364,-1800.0,0.00016683,2]
[398505030,1765762243374,-5197.53588738,0.00016696,2]
[398505031,1765762243384,-19292.52667859,0.00016696,2]
[398505032,1765762243394,-595.37131296,0.00016697,2]
[398505033,1765762243404,-152.29872896,0.00016697,2]
[398505034,1765762243413,-500.0,0.00016699,2]
[398505035,1765762243423,-157.26006085,0.00016699,2]
[398505036,1765762243432,-150.0,0.00016699,2]
[398505037,1765762243442,-150.50253545,0.00016699,2]
[398505038,1765762243453,-150.0,0.00016699,2]
[398505039,1765762243463,-150.0,0.00016699,2]
[398505040,1765762243473,-150.0,0.00016699,2]
[398505041,1765762243483,-150.0,0.00016699,2]
[398505042,1765762243492,-500.0,0.00016699,2]
[398505043,1765762243505,-500.0,0.00016699,2]
[398505044,1765762243515,-150.0,0.00016699,2]
[398505045,1765762243525,-500.0,0.00016699,2]
[398505046,1765762243534,-150.0,0.00016699,2]
[398505047,1765762243544,-150.0,0.00016699,2]
[398505048,1765762243554,-150.23382477,0.00016699,2]
[398505049,1765762243564,-150.0,0.00016699,2]
[398505050,1765762243573,-150.0,0.00016699,2]
[398505051,1765762243582,-150.0,0.00016699,2]
[398505052,1765762243592,-150.0,0.00016699,2]
[398505053,1765762243602,-500.0,0.00016699,2]
[398505054,1765762243611,-500.0,0.00016699,2]
[398505055,1765762243621,-150.0,0.00016699,2]
[398505056,1765762243630,-500.0,0.00016699,2]
[398505057,1765762243640,-150.0,0.00016699,2]
[398505058,1765762243649,-150.0,0.00016699,2]
[398505059,1765762243658,-150.0,0.00016699,2]
[398505060,1765762243668,-152.84303345,0.00016699,2]
[398505061,1765762243678,-500.0,0.00016699,2]
[398505062,1765762243687,-500.0,0.00016699,2]
[398505063,1765762243698,-500.0,0.00016699,2]
[398505064,1765762243707,-150.0,0.00016699,2]
[398505065,1765762243716,-186.43349316,0.00016699,2]
[398505066,1765762243726,-201.55115124,0.00016699,2]
[398505067,1765762243735,-500.0,0.00016699,2]
[398505068,1765762243745,-500.0,0.00016699,2]
[398505069,1765762243755,-500.0,0.00016699,2]
[398505070,1765762243766,-500.0,0.00016699,2]
[398505071,1765762243776,-150.0,0.00016699,2]
[398505072,1765762243787,-1516.0,0.00016699,2]
[398505073,1765762243797,-150.0,0.00016699,2]
[398505074,1765762243807,-150.0,0.00016699,2]
[398505075,1765762243816,-500.0,0.00016699,2]
[398505076,1765762243826,-500.0,0.00016699,2]
[398505077,1765762243836,-150.0,0.00016699,2]
[398505078,1765762243845,-150.0,0.00016699,2]
[398505079,1765762243854,-150.0,0.00016699,2]
[398505080,1765762243863,-1000.0,0.000167,2]
[398505081,1765762243872,-1903.35512257,0.0001673,2]
[398505082,1765762243881,-877.6523233,0.00016731,2]
[398505083,1765762243891,-10000.0,0.00016736,2]
[398505084,1765762243900,-983.71683824,0.00016745,2]
[398505085,1765762243909,-150.85899699,0.00016784,2]
[398505086,1765762243919,-1127.0,0.00016785,2]
[398505087,1765762243928,-5197.53588738,0.00016798,2]
[398505088,1765762243937,-19292.52667859,0.00016798,2]
[398505089,1765762243947,-1008.0,0.000168,2]
[398505090,1765762243956,-381.00811,0.0001683,2]
[398505091,1765762243965,-500.0,0.00016836,2]
[398505092,1765762243974,-235.86372858,0.00016836,2]
[398505093,1765762243983,-150.0,0.00016836,2]
[398505094,1765762243992,-150.0,0.00016836,2]
[398505095,1765762244002,-500.0,0.00016836,2]
[398505096,1765762244011,-500.0,0.00016836,2]
[398505097,1765762244020,-151.68130403,0.00016836,2]
[398505098,1765762244029,-500.0,0.00016836,2]
[398505099,1765762244038,-150.0,0.00016836,2]
[398505100,1765762244047,-150.0,0.00016836,2]
[398505101,1765762244057,-253.94613988,0.00016836,2]
[398505102,1765762244066,-150.77462243,0.00016836,2]
[398505103,1765762244075,-200.0,0.00016836,2]
[398505104,1765762244084,-590.0606345,0.00016836,2]
[398505105,1765762244094,-500.0,0.00016836,2]
[398505106,1765762244103,-150.0,0.00016836,2]
[398505107,1765762244112,-500.0,0.00016836,2]
[398505108,1765762244122,-150.0,0.00016836,2]
[398505109,1765762244131,-150.0,0.00016836,2]
[398505110,1765762244141,-500.0,0.00016836,2]
[398505111,1765762244152,-550.0,0.00016836,2]
[398505112,1765762244163,-500.0,0.00016836,2]
[398505113,1765762244173,-150.0,0.00016836,2]
[398505114,1765762244183,-500.0,0.00016836,2]
[398505115,1765762244193,-500.0,0.00016836,2]
[398505116,1765762244204,-500.0,0.00016836,2]
[398505117,1765762244214,-500.0,0.00016836,2]
[398505118,1765762244223,-1516.0,0.00016836,2]
[398505119,1765762244232,-150.0,0.00016836,2]
[398505120,1765762244241,-150.0,0.00016836,2]
[398505121,1765762244251,-500.0,0.00016836,2]
[398505122,1765762244260,-500.0,0.00016836,2]
[398505123,1765762244271,-150.0,0.00016836,2]
[398505124,1765762244282,-157.07882713,0.00016839,2]
[398505125,1765762244291,-200.0,0.00016864,2]
[398505126,1765762244301,-1014.12,0.00016896,2]
[398505127,1765762244310,-1000.0,0.000169,2]
[398505128,1765762244320,-5197.53588738,0.000169,2]
[398505129,1765762244329,-1429.27931976,0.000169,2]
[398505130,1765762244339,-19292.52667859,0.000169,2]
[398505131,1765762244348,-2669.55646295,0.000169,2]
[398505132,1765762244357,-4780.0,0.000169,2]
[398505133,1765762244367,-481.15230225,0.00016924,2]
[398505134,1765762244376,-2102.0,0.00016959,2]
[398505135,1765762244385,-500.0,0.00016973,2]
[398505136,1765762244395,-500.0,0.00016973,2]
[398505137,1765762244404,-169.15209317,0.00016973,2]
[398505138,1765762244413,-500.0,0.00016973,2]
[398505139,1765762244423,-500.0,0.00016973,2]
[398505140,1765762244432,-500.52668444,0.00016973,2]
[398505141,1765762244442,-500.0,0.00016973,2]
[398505142,1765762244452,-500.0,0.00016973,2]
[398505143,1765762244462,-500.0,0.00016973,2]
[398505144,1765762244473,-500.0,0.00016973,2]
[398505145,1765762244483,-166.99374332,0.00016973,2]
[398505146,1765762244492,-500.0,0.00016973,2]
[398505147,1765762244502,-500.0,0.00016973,2]
[398505148,1765762244511,-500.0,0.00016973,2]
[398505149,1765762244522,-500.0,0.00016973,2]
[398505150,1765762244532,-500.0,0.00016973,2]
[398505151,1765762244541,-223.86650023,0.00016973,2]
[398505152,1765762244551,-500.0,0.00016973,2]
[398505153,1765762244560,-500.0,0.00016973,2]
[398505154,1765762244570,-500.0,0.00016973,2]
[398505155,1765762244579,-500.0,0.00016973,2]
[398505156,1765762244589,-500.0,0.00016973,2]
[398505157,1765762244598,-500.0,0.00016973,2]
[398505158,1765762244607,-500.0,0.00016973,2]
[398505159,1765762244616,-500.0,0.00016973,2]
[398505160,1765762244626,-500.0,0.00016973,2]
[398505161,1765762244635,-500.51119776,0.00016973,2]
[398505162,1765762244644,-500.75377952,0.00016973,2]
[398505163,1765762244653,-500.0,0.00016973,2]
[398505164,1765762244662,-150.0,0.00016973,2]
[398505165,1765762244672,-150.0,0.00016973,2]
[398505166,1765762244682,-500.0,0.00016973,2]
[398505167,1765762244691,-263.35848745,0.00016973,2]
[398505168,1765762244702,-500.0,0.00016973,2]
[398505169,1765762244711,-150.0,0.00016973,2]
[398505170,1765762244721,-500.0,0.00016973,2]
[398505171,1765762244735,-150.0,0.00016973,2]
[398505172,1765762244744,-500.0,0.00016973,2]
[398505173,1765762244754,-453.60065798,0.00016973,2]
[398505174,1765762244763,-500.0,0.00016973,2]
[398505175,1765762244772,-150.0,0.00016973,2]
[398505176,1765762244781,-500.0,0.00016973,2]
[398505177,1765762244790,-500.0,0.00016973,2]
[398505178,1765762244799,-500.0,0.00016973,2]
[398505179,1765762244808,-393.24107785,0.00016973,2]
[398505180,1765762244818,-1516.0,0.00016973,2]
[398505181,1765762244827,-200.0,0.00016973,2]
[398505182,1765762244837,-150.0,0.00016973,2]
[398505183,1765762244846,-500.0,0.00016973,2]
[398505184,1765762244856,-500.0,0.00016973,2]
[398505185,1765762244865,-150.0,0.00016973,2]
[398505186,1765762244876,-500.0,0.00016973,2]
[398505187,1765762244885,-150.0,0.00016973,2]
[398505188,1765762244894,-1800.0,0.00016973,2]
[398505189,1765762244903,-151.0,0.00016983,2]
[398505190,1765762244912,-500.0,0.00016986,2]
[398505191,1765762244921,-600.0,0.00016986,2]
[398505192,1765762244931,-191.17730106,0.00016986,2]
[398505193,1765762244941,-150.0,0.00016986,2]
[398505194,1765762244951,-108215.68,0.00016986,2]
[398505195,1765762244960,-521.39477562,0.0001699,2]
[398505196,1765762244969,-521.39477562,0.0001699,2]
[398505197,1765762244978,-151.0,0.00016997,2]
[398505198,1765762244987,-492.97672049,0.00016999,2]
[398505199,1765762244997,-1002.2159,0.00016999,2]
[398505200,1765762245006,-500.0,0.00016999,2]
[398505201,1765762245015,-500.0,0.00016999,2]
[398505202,1765762245026,-500.0,0.00016999,2]
[398505203,1765762245035,-500.0,0.00016999,2]
[398505204,1765762245045,-500.0,0.00016999,2]
[398505205,1765762245055,-500.0,0.00016999,2]
[398505206,1765762245065,-504.03,0.00016999,2]
[398505207,1765762245074,-222.87994675,0.00016999,2]
[398505208,1765762245084,-500.0,0.00016999,2]
[398505209,1765762245093,-500.0,0.00016999,2]
[398505210,1765762245101,-500.0,0.00016999,2]
[398505211,1765762245111,-500.0,0.00016999,2]
[398505212,1765762245120,-500.0,0.00016999,2]
[398505213,1765762245130,-500.0,0.00016999,2]
[398505214,1765762245139,-500.0,0.00016999,2]
[398505215,1765762245148,-500.0,0.00016999,2]
[398505216,1765762245157,-500.0,0.00016999,2]
[398505217,1765762245166,-500.0,0.00016999,2]
[398505218,1765762245175,-500.0,0.00016999,2]
[398505219,1765762245184,-500.0,0.00016999,2]
[398505220,1765762245194,-500.0,0.00016999,2]
[398505221,1765762245207,-500.0,0.00016999,2]
[398505222,1765762245217,-500.0,0.00016999,2]
[398505223,1765762245227,-500.0,0.00016999,2]
[398505224,1765762245236,-500.0,0.00016999,2]
[398505225,1765762245248,-169.74250398,0.00016999,2]
[398505226,1765762245257,-500.0,0.00016999,2]
[398505227,1765762245267,-500.0,0.00016999,2]
[398505228,1765762245277,-500.0,0.00016999,2]
[398505229,1765762245286,-282.80390472,0.00016999,2]
[398505230,1765762245295,-322.35894604,0.00016999,2]
[398505231,1765762245305,-12139.16966381,0.00016999,2]
[398505232,1765762245314,-300.0,0.00016999,2]
[398505233,1765762245324,-728.58,0.00016999,2]
[398505234,1765762245333,-728.58,0.00016999,2]
[398505235,1765762245342,-728.58,0.00016999,2]
[398505236,1765762245351,-728.58,0.00016999,2]
[398505237,1765762245361,-728.58,0.00016999,2]
[398505238,1765762245370,-728.58,0.00016999,2]
[398505239,1765762245379,-728.58,0.00016999,2]
[398505240,1765762245389,-728.58,0.00016999,2]
[398505241,1765762245399,-728.58,0.00016999,2]
[398505242,1765762245408,-728.58,0.00016999,2]
[398505243,1765762245418,-728.58,0.00016999,2]
[398505244,1765762245428,-728.58,0.00016999,2]
[398505245,1765762245438,-728.58,0.00016999,2]
[398505246,1765762245448,-728.58,0.00016999,2]
[398505247,1765762245457,-728.58,0.00016999,2]
[398505248,1765762245468,-728.58,0.00016999,2]
[398505249,1765762245477,-728.58,0.00016999,2]
[398505250,1765762245487,-728.58,0.00016999,2]
[398505251,1765762245496,-728.71410212,0.00016999,2]
[398505252,1765762245506,-4263093.87471624,0.00017,2]
[398505253,1765762245516,-1500.0,0.00017,2]
[398505254,1765762245526,-1500.0,0.00017,2]
[398505255,1765762245535,-1500.0,0.00017,2]
[398505256,1765762245545,-1500.0,0.00017,2]
[398505257,1765762245555,-1500.0,0.00017,5]
[398505258,1765762245564,-1500.0,0.00017,2]
[398505259,1765762245574,-1500.0,0.00017,2]
[398505260,1765762245583,-1500.0,0.00017,2]
[398505261,1765762245593,-1565.28215524,0.00017,2]
[398505262,1765762245602,-250.0,0.00017,2]
[398505263,1765762245612,-150.0,0.00017,2]
[398505264,1765762245621,-150.0,0.00017,2]
[398505265,1765762245631,-150.0,0.00017,2]
[398505266,1765762245640,-150.121,0.00017,2]
[398505267,1765762245648,-150.0,0.00017,2]
[398505268,1765762245657,-150.0,0.00017,2]
[398505269,1765762245667,-150.0,0.00017,2]
[398505270,1765762245675,-150.0,0.00017,2]
[398505271,1765762245685,-150.0,0.00017,2]
[398505272,1765762245694,-1000.0,0.00017,2]
[398505273,1765762245703,-1000.0,0.00017,2]
[398505274,1765762245712,-1000.0,0.00017,2]
[398505275,1765762245721,-1000.0,0.00017,2]
[398505276,1765762245731,-1000.0,0.00017,2]
[398505277,1765762245740,-1000.0,0.00017,2]
[398505278,1765762245749,-1000.0,0.00017,2]
[398505279,1765762245758,-1000.0,0.00017,2]
[398505280,1765762245767,-1000.0,0.00017,2]
[398505281,1765762245776,-1000.0,0.00017,2]
[398505282,1765762245785,-1000.0,0.00017,2]
[398505283,1765762245794,-1000.0,0.00017,2]
[398505284,1765762245803,-1000.0,0.00017,2]
[398505285,1765762245813,-1000.0,0.00017,2]
[398505286,1765762245822,-1000.0,0.00017,2]
[398505287,1765762245831,-1000.0,0.00017,2]
[398505288,1765762245840,-1000.0,0.00017,2]
[398505289,1765762245850,-1000.0,0.00017,2]
[398505290,1765762245859,-1000.0,0.00017,2]
[398505291,1765762245869,-1000.0,0.00017,2]
[398505292,1765762245879,-1000.0,0.00017,2]
[398505293,1765762245889,-1000.0,0.00017,2]
[398505294,1765762245898,-1000.0,0.00017,2]
[398505295,1765762245906,-1000.0,0.00017,2]
[398505296,1765762245915,-1000.0,0.00017,2]
[398505297,1765762245924,-1000.0,0.00017,2]
[398505298,1765762245933,-1000.0,0.00017,2]
[398505299,1765762245942,-1021.10501284,0.00017,2]
[398505300,1765762245951,-151.0,0.00017,2]
[398505302,1765762245960,-23900.7075124,0.00017,2]
[398505304,1765762245969,-151.0,0.00017,2]
[398505306,1765762245978,-151.0,0.00017,2]
[398505308,1765762245987,-580.61531389,0.00017,2]
[398505310,1765762245996,-223.85243723,0.00017,2]
[398505312,1765762246006,-151.0,0.00017,2]
[398505314,1765762246015,-151.0,0.00017,2]
[398505316,1765762246024,-151.0,0.00017,2]
[398505318,1765762246033,-151.0,0.00017,2]
[398505320,1765762246043,-151.0,0.00017,2]
[398505322,1765762246052,-151.0,0.00017,2]
[398505324,1765762246062,-151.0,0.00017,2]
[398505326,1765762246071,-151.0,0.00017,2]
[398505328,1765762246081,-151.0,0.00017,2]
[398505330,1765762246090,-151.0,0.00017,2]
[398505332,1765762246101,-169.904865,0.00017,2]
[398505334,1765762246111,-151.0,0.00017,2]
[398505336,1765762246122,-151.0,0.00017,2]
[398505338,1765762246132,-151.975335,0.00017,2]
[398505352,1765762246471,-151.0,0.00017,2]
[398505353,1765762246482,-151.0,0.00017,2]
[398505354,1765762246491,-151.0,0.00017,2]
[398505355,1765762246501,-151.0,0.00017,2]
[398505356,1765762246511,-152.888234,0.00017,2]
[398505357,1765762246521,-4556.5592016,0.00017,2]
[398505358,1765762246531,-642.0,0.00017,2]
[398505359,1765762246541,-250.0,0.00017,2]
[398505360,1765762246550,-1261.0,0.00017,2]
[398505361,1765762246559,-2000.0,0.00017,2]
[398505362,1765762246568,-170124.2350495,0.00017,2]
[398505363,1765762246577,-8903.5473989,0.00017,2]
[398505364,1765762246587,-3526.67382079,0.00017,2]
[398505365,1765762246596,-500.0,0.00017,2]
[398505366,1765762246605,-511.46971854,0.00017,2]
[398505367,1765762246617,-643623.45875114,0.00017,2]
[398505368,1765762246634,-22690.26435887,0.00017,2]
[398505369,1765762246851,-500.0,0.00016699,2]
[398505370,1765762246860,-392.53722502,0.00016767,2]
[398505414,1765762431646,2316.58,0.00015584,2]
[398505455,1765762706621,787.0,0.00015652,2]
[398505456,1765762709691,787.0,0.00015653,2]
[398505459,1765762732508,539.0,0.00015632,2]
[398505461,1765762737307,539.0,0.00015496,2]
[398505462,1765762742274,250.0,0.00015602,2]
[398505463,1765762744523,539.0,0.00015637,2]
[398505469,1765762783408,200.0,0.00015615,2]
[398505472,1765762810389,285.53,7.806e-05,2]
[398505473,1765762810450,285.53,8.217e-05,2]
[398505474,1765762810498,285.53,8.628e-05,2]
[398505475,1765762810541,285.53,9.039e-05,2]
[398505476,1765762811081,285.53,9.45e-05,2]
[398505477,1765762811136,285.53,9.86e-05,2]
[398505478,1765762811172,285.53,0.00010271,2]
[398505479,1765762811211,285.53,0.00010682,2]
[398505480,1765762811253,285.53,0.00011093,2]
[398505481,1765762811301,285.53,0.00011504,2]
[398505482,1765762811406,285.53,0.00011915,2]
[398505483,1765762811471,285.53,0.00012326,2]
[398505484,1765762811539,285.53,0.00012736,2]
[398505485,1765762812676,-160.09949067,0.00015769,2]
[398505486,1765762819481,285.53,0.00013147,2]
[398505487,1765762819719,285.53,0.00013558,2]
[398505488,1765762819921,285.53,0.00013969,2]
[398505489,1765762820113,285.53,0.0001438,2]
[398505491,1765762822636,285.53,0.00014791,2]
[398505492,1765762822692,285.53,0.00015202,2]
[398505493,1765762822757,285.53,0.00015612,2]
[398505513,1765762942160,218.0,0.00015717,2]
[398505557,1765763114463,592.57,0.00015299,2]
[398505563,1765763127710,158.9201118,0.00015288,2]
[398505564,1765763127770,150.0,0.00015288,2]
[398505565,1765763128141,155.60133693,0.00015288,2]
[398505568,1765763134966,172.46,0.00015299,2]
[398505569,1765763135147,157.23023559,0.00015288,2]
[398505570,1765763135198,150.0,0.00015288,2]
[398505571,1765763135238,157.95011395,0.00015288,2]
[398505572,1765763149236,156.18558464,0.00015288,2]
[398505640,1765763321992,359.06,0.00015374,2]
[398505697,1765763431590,-378.90050933,0.00015769,2]
[398505698,1765763431600,-96.71949067,0.00015769,2]
[398505699,1765763431644,-278.03744096,0.00015769,2]
[398505700,1765763431654,-786.47530571,0.000158,2]
[398505701,1765763431666,-539.0,0.00015825,2]
[398505702,1765763431679,-218.0,0.00015874,2]
[398505703,1765763431689,-539.0,0.00015879,2]
[398505704,1765763431698,-341.88393348,0.00015914,2]
[398505705,1765763431707,-168.0,0.00015941,2]
[398505706,1765763431717,-1200.0,0.00015999,2]
[398505707,1765763431726,-300.0,0.00015999,2]
[398505708,1765763431738,-300.0,0.00015999,2]
[398505709,1765763431748,-618.95,0.00016,2]
[398505710,1765763431758,-150.99,0.00016,2]
[398505711,1765763431767,-9999.99,0.00016,2]
[398505712,1765763431777,-550.0,0.00016014,2]
[398505713,1765763431786,-9800.32169354,0.00016015,2]
[398505717,1765763437573,-341.88393347,0.00016014,2]
[398505718,1765763437582,-11649.10316975,0.00016015,2]
[398505719,1765763437592,-439.87536569,0.00016028,2]
[398505760,1765763439758,-1429.83463431,0.00016028,2]
[398505761,1765763439767,-168.20951019,0.00016075,2]
[398505762,1765763439777,-500.0,0.00016076,2]
[398505763,1765763439785,-500.0,0.00016076,2]
[398505764,1765763439794,-500.0,0.00016076,2]
[398505765,1765763439804,-515.13074479,0.00016076,2]
[398505766,1765763439813,-1753.162,0.00016076,2]
[398505767,1765763439823,-178.10682778,0.00016076,2]
[398505768,1765763439832,-500.0,0.00016076,2]
[398505769,1765763439842,-512.51905285,0.00016076,2]
[398505770,1765763439852,-500.0,0.00016085,2]
[398505771,1765763439861,-5220.19570931,0.00016094,2]
[398505772,1765763439870,-3054.4349,0.00016102,2]
[398505773,1765763439879,-905.0,0.0001611,2]
[398505774,1765763439888,-1208.63,0.00016114,2]
[398505775,1765763439898,-500.0,0.00016115,2]
[398505776,1765763439907,-3184.69,0.00016116,2]
[398505777,1765763439924,-16205.0,0.00016116,2]
[398505778,1765763439936,-9999.99,0.00016116,2]
[398505779,1765763439946,-150.0,0.00016137,2]
[398505780,1765763439955,-587.0,0.00016138,2]
[398505781,1765763439964,-598.0,0.00016142,2]
[398505782,1765763439974,-372.0,0.00016142,2]
[398505783,1765763439983,-606.98391087,0.00016149,2]
[398505784,1765763439994,-869.24164202,0.00016149,2]
[398505785,1765763440003,-300.0,0.00016149,2]
[398505786,1765763440013,-1502.0,0.00016149,2]
[398505787,1765763440022,-1138.0,0.00016154,2]
[398505788,1765763440032,-1098.0,0.0001617,2]
[398505789,1765763440042,-496.0,0.00016174,2]
[398505790,1765763440051,-459.0,0.00016174,2]
[398505791,1765763440061,-500.0,0.00016183,2]
[398505792,1765763440072,-259.32595786,0.00016183,2]
[398505793,1765763440083,-174.52016198,0.00016183,2]
[398505794,1765763440092,-530.10876717,0.00016183,2]
[398505795,1765763440102,-5220.19570927,0.00016184,2]
[398505796,1765763440111,-151.0,0.00016184,2]
[398505797,1765763440121,-1000.0,0.00016193,2]
[398505798,1765763440130,-1001.79192302,0.00016193,2]
[398505799,1765763440139,-200.0,0.00016194,2]
[398505800,1765763440149,-620.0,0.00016194,2]
[398505801,1765763440158,-151.0,0.00016194,2]
[398505802,1765763440168,-574.12855637,0.00016194,2]
[398505803,1765763440178,-1000.0,0.00016194,2]
[398505804,1765763440187,-151.0,0.00016194,2]
[398505805,1765763440196,-1000.0,0.00016194,2]
[398505806,1765763440205,-151.0,0.00016194,2]
[398505807,1765763440214,-1000.0,0.00016194,2]
[398505808,1765763440223,-151.0,0.00016194,2]
[398505810,1765763440234,-1000.0,0.00016194,2]
[398505812,1765763440245,-151.0,0.00016194,2]
[398505813,1765763440256,-1000.0,0.00016194,2]
[398505814,1765763440265,-151.0,0.00016194,2]
[398505815,1765763440275,-1000.0,0.00016194,2]
[398505816,1765763440285,-1000.0,0.00016194,2]
[398505817,1765763440294,-151.0,0.00016194,2]
[398505818,1765763440304,-200.0,0.00016194,2]
[398505819,1765763440314,-1000.0,0.00016194,2]
[398505820,1765763440323,-152.73547897,0.00016194,2]
[398505821,1765763440333,-151.0,0.00016194,2]
[398505822,1765763440342,-1000.0,0.00016194,2]
[398505823,1765763440352,-151.0,0.00016194,2]
[398505824,1765763440363,-1000.0,0.00016194,2]
[398505825,1765763440373,-151.0,0.00016194,2]
[398505826,1765763440383,-1000.0,0.00016194,2]
[398505827,1765763440392,-151.0,0.00016194,2]
[398505828,1765763440402,-151.0,0.00016194,2]
[398505829,1765763440412,-151.0,0.00016194,2]
[398505830,1765763440422,-151.0,0.00016194,2]
[398505831,1765763440431,-151.0,0.00016194,2]
[398505832,1765763440442,-151.0,0.00016194,2]
[398505833,1765763440451,-500.0,0.00016194,2]
[398505834,1765763440460,-500.0,0.00016194,2]
[398505835,1765763440469,-151.0,0.00016194,2]
[398505836,1765763440478,-154.31797564,0.00016194,2]
[398505837,1765763440487,-151.0,0.00016194,2]
[398505838,1765763440497,-500.0,0.00016194,2]
[398505839,1765763440508,-151.0,0.00016194,2]
[398505840,1765763440517,-500.0,0.00016194,2]